fUST/lending_fUST_20260311
["ID","MTS","AMOUNT","RATE_DAILY","PERIOD"]
[408200428,1773221443693,-14714.10901789,2.577e-05,2]
[408200429,1773221443705,-17053.1063315,2.577e-05,2]
[408200434,1773221446487,-9472.82485745,2.577e-05,2]
[408200435,1773221466727,151.0,0.000102,120]
[408200436,1773221502254,151.0,0.000102,120]
[408200437,1773221545995,151.0,0.000102,120]
[408200439,1773221598369,151.0,0.000102,120]
[408200441,1773221637980,151.0,0.000102,120]
[408200443,1773221681938,151.0,0.000102,120]
[408200444,1773221728002,151.0,0.000102,120]
[408200445,1773221749266,-4462.97188793,2.426e-05,2]
[408200446,1773221749296,-307.61183717,2.451e-05,2]
[408200447,1773221749323,-279.90509962,2.5e-05,2]
[408200448,1773221749350,-300.0,2.55e-05,2]
[408200449,1773221749376,-2589.08657565,2.551e-05,2]
[408200451,1773221766080,151.0,0.000102,120]
[408200452,1773221801930,151.0,0.000102,120]
[408200453,1773221838769,151.0,0.000102,120]
[408200454,1773221868835,-5000.0,2.525e-05,2]
[408200455,1773221868864,-4120.84919926,2.551e-05,2]
[408200456,1773221868890,-300.0,2.552e-05,2]
[408200457,1773221868921,-500.0,2.553e-05,2]
[408200458,1773221871841,151.0,0.000102,120]
[408200459,1773221905651,151.0,0.000102,120]
[408200460,1773221935792,151.0,0.000102,120]
[408200461,1773221952935,-5000.0,2.55e-05,2]
[408200462,1773221952964,-500.0,2.553e-05,2]
[408200463,1773221952991,-500.0,2.553e-05,2]
[408200464,1773221953020,-274.30699762,2.563e-05,2]
[408200465,1773221953047,-300.0,2.576e-05,2]
[408200466,1773221958171,500.0,2.553e-05,2]
[408200467,1773221966396,151.0,0.000102,120]
[408200468,1773221971046,5000.0,2.6e-05,2]
[408200469,1773222002061,300.0,2.6e-05,2]
[408200471,1773222006659,151.0,0.000102,120]
[408200473,1773222015791,1051.38600476,2.6e-05,2]
[408200474,1773222038036,151.0,0.000102,120]
[408200475,1773222078266,151.0,0.000102,120]
[408200477,1773222117826,151.0,0.000102,120]
[408200479,1773222148175,151.0,0.000102,120]
[408200481,1773222191886,151.0,0.000102,120]
[408200482,1773222226348,151.0,0.000102,120]
[408200483,1773222266395,151.0,0.000102,120]
[408200484,1773222312676,151.0,0.000102,120]
[408200486,1773222357731,151.0,0.000102,120]
[408200487,1773222398133,151.0,0.000102,120]
[408200598,1773222431964,151.0,0.000102,120]
[408201073,1773222469180,151.0,0.000102,120]
[408201163,1773222505323,151.0,0.000102,120]
[408201262,1773222548195,151.0,0.000102,120]
[408201280,1773222581982,151.0,0.000102,120]
[408201281,1773222615533,151.0,0.000102,120]
[408201302,1773222632449,-156.66526486,2.449e-05,2]
[408201304,1773222632459,-239.79272479,2.479e-05,2]
[408201407,1773222638839,-4760.20727521,2.479e-05,2]
[408201409,1773222638850,-268.82085767,2.504e-05,2]
[408201411,1773222638858,-300.0,2.522e-05,2]
[408201413,1773222638867,-500.0,2.523e-05,2]
[408201415,1773222638879,-500.0,2.523e-05,2]
[408201417,1773222638888,-500.0,2.523e-05,2]
[408201419,1773222638898,-500.0,2.523e-05,2]
[408201421,1773222638906,-500.52775023,2.523e-05,2]
[408201423,1773222638916,-1360.9620603,2.541e-05,2]
[408201425,1773222638927,-1333.66462782,2.541e-05,2]
[408201427,1773222638938,-13500.54834359,2.541e-05,2]
[408201443,1773222641141,-563.1333299,2.516e-05,2]
[408201449,1773222644241,-5000.0,2.491e-05,2]
[408201450,1773222644251,-132.95729005,2.516e-05,2]
[408201451,1773222644262,-3608.0361467,2.516e-05,2]
[408201458,1773222646617,-10003.42851905,2.516e-05,2]
[408201459,1773222646627,-96225.74481348,2.541e-05,2]
[408201460,1773222646776,-1737.5,2.541e-05,2]
[408201461,1773222646788,-5142.0,2.541e-05,2]
[408201462,1773222647779,151.0,0.000102,120]
[408201465,1773222679141,151.0,0.000102,120]
[408201466,1773222718753,151.0,0.000102,120]
[408201468,1773222761840,151.0,0.000102,120]
[408201471,1773222797844,151.0,0.000102,120]
[408201472,1773222838209,151.0,0.000102,120]
[408201478,1773222876482,151.0,0.000102,120]
[408201479,1773222906297,151.0,0.000102,120]
[408201495,1773222941972,151.0,0.000102,120]
[408201500,1773222946640,-357.92300043,2.393e-05,2]
[408201501,1773222946668,-269.40535764,2.405e-05,2]
[408201502,1773222946694,-3745.34328386,2.417e-05,2]
[408201503,1773222978119,151.0,0.000102,120]
[408201504,1773223003697,-1254.65671614,2.417e-05,2]
[408201505,1773223003724,-972.85665378,2.441e-05,2]
[408201506,1773223003750,-6000.0,2.5e-05,2]
[408201507,1773223003775,-500.0,2.523e-05,2]
[408201508,1773223003803,-300.0,2.542e-05,2]
[408201509,1773223003831,-300.0,2.542e-05,2]
[408201510,1773223022707,-5000.0,2.518e-05,2]
[408201511,1773223022736,-300.0,2.542e-05,2]
[408201512,1773223022764,-2609.2784363,2.543e-05,2]
[408201513,1773223025252,151.0,0.000102,120]
[408201515,1773223058552,151.0,0.000102,120]
[408201516,1773223101560,151.0,0.000102,120]
[408201518,1773223128190,151.0,0.000102,120]
[408201520,1773223158575,151.0,0.000102,120]
[408201521,1773223179792,-5000.0,2.518e-05,2]
[408201522,1773223179819,-500.0,2.523e-05,2]
[408201523,1773223179845,-500.0,2.523e-05,2]
[408201524,1773223179872,-300.0,2.54e-05,2]
[408201525,1773223191712,-5000.0,2.516e-05,2]
[408201526,1773223195583,151.0,0.000102,120]
[408201527,1773223224658,-2278.04754009,2.497e-05,2]
[408201528,1773223225941,151.0,0.000102,120]
[408201529,1773223266420,151.0,0.000102,120]
[408201532,1773223285952,-1747.58991247,2.472e-05,2]
[408201533,1773223296588,151.0,0.000102,120]
[408201534,1773223328703,151.0,0.000102,120]
[408201541,1773223367045,151.0,0.000102,120]
[408201543,1773223384717,-1504.82017506,2.472e-05,2]
[408201544,1773223384749,-2721.95245991,2.497e-05,2]
[408201545,1773223384779,-300.0,2.522e-05,2]
[408201546,1773223384809,-446.45473006,2.523e-05,2]
[408201548,1773223401912,151.0,0.000102,120]
[408201552,1773223449669,151.0,0.000102,120]
[408201556,1773223488623,151.0,0.000102,120]
[408201558,1773223500466,-5000.0,2.497e-05,2]
[408201559,1773223500494,-300.0,2.522e-05,2]
[408201560,1773223500522,-53.54526994,2.523e-05,2]
[408201561,1773223500549,-500.0,2.523e-05,2]
[408201562,1773223500576,-500.0,2.523e-05,2]
[408201563,1773223500604,-1046.12731532,2.527e-05,2]
[408201566,1773223526615,151.0,0.000102,120]
[408201575,1773223567609,151.0,0.000102,120]
[408201578,1773223606421,151.0,0.000102,120]
[408201583,1773223648683,151.0,0.000102,120]
[408201584,1773223686377,151.0,0.000102,120]
[408201586,1773223717870,151.0,0.000102,120]
[408201590,1773223752143,151.0,0.000102,120]
[408201591,1773223798895,151.0,0.000102,120]
[408201620,1773223831634,-3644.91492102,2.472e-05,2]
[408201621,1773223831688,-958.06093618,2.472e-05,2]
[408201623,1773223831699,-397.0241428,2.472e-05,2]
[408201626,1773223831708,-268.76914907,2.51e-05,2]
[408201627,1773223831717,-27.27197218,2.523e-05,2]
[408201644,1773223837810,-472.72802782,2.523e-05,2]
[408201645,1773223837819,-300.0,2.524e-05,2]
[408201646,1773223837828,-1278.2838564,2.525e-05,2]
[408201647,1773223837838,-11245.3315455,2.525e-05,2]
[408201648,1773223837847,-200.65482948,2.527e-05,2]
[408201649,1773223837856,-4181.4431274,2.543e-05,2]
[408201650,1773223837865,-474.5377226,2.543e-05,2]
[408201651,1773223837874,-445.202766,2.588e-05,2]
[408201652,1773223837882,-162.380719,2.588e-05,2]
[408201653,1773223837891,-2150.738,2.588e-05,2]
[408201654,1773223837900,-537.6845,2.588e-05,2]
[408201655,1773223837909,-300.0,2.601e-05,2]
[408201656,1773223837920,-300.0,2.601e-05,2]
[408201657,1773223837930,-300.0,2.601e-05,2]
[408201658,1773223837939,-300.0,2.601e-05,2]
[408201659,1773223837951,-300.0,2.601e-05,2]
[408201660,1773223837960,-300.0,2.601e-05,2]
[408201661,1773223837971,-300.0,2.601e-05,2]
[408201662,1773223837980,-300.0,2.601e-05,2]
[408201663,1773223837989,-300.0,2.601e-05,2]
[408201664,1773223837998,-300.0,2.601e-05,2]
[408201665,1773223838007,-300.0,2.601e-05,2]
[408201666,1773223838016,-300.0,2.601e-05,2]
[408201667,1773223838025,-300.0,2.601e-05,2]
[408201668,1773223838034,-300.0,2.601e-05,2]
[408201669,1773223838043,-300.0,2.601e-05,2]
[408201670,1773223838052,-600.0,2.628e-05,2]
[408201671,1773223838061,-2201.1846057,2.64e-05,2]
[408201672,1773223838070,-163802.35609924,2.677e-05,2]
[408201673,1773223838079,-10000.0,2.74e-05,2]
[408201674,1773223838088,-639.0,2.773e-05,2]
[408201675,1773223838098,-2193.0,2.773e-05,2]
[408201676,1773223838107,-436.0,2.776e-05,2]
[408201677,1773223838116,-436.0,2.776e-05,2]
[408201678,1773223838128,-733.0,2.776e-05,2]
[408201679,1773223838137,-420.0,2.776e-05,2]
[408201680,1773223838148,-150.0,2.778e-05,2]
[408201681,1773223838157,-150.0,2.778e-05,2]
[408201682,1773223838167,-879.0,2.8e-05,2]
[408201683,1773223838177,-161.96979513,2.832e-05,2]
[408201684,1773223838186,-200.12,2.834e-05,2]
[408201685,1773223838195,-2509.1726286,2.856e-05,2]
[408201686,1773223838205,-1515.21479,2.872e-05,2]
[408201687,1773223838214,-500.0,2.879e-05,2]
[408201688,1773223838223,-720.0,2.89e-05,2]
[408201689,1773223838233,-559.8720904,2.93e-05,2]
[408201690,1773223838242,-338.0901187,2.946e-05,2]
[408201691,1773223838251,-1571.86155861,3.029e-05,2]
[408201692,1773223838260,-587.0,3.054e-05,2]
[408201693,1773223838269,-1000.0,3.071e-05,2]
[408201694,1773223838278,-1000.0,3.071e-05,2]
[408201695,1773223838288,-500.0,3.1e-05,2]
[408201696,1773223838297,-461.67526834,3.136e-05,2]
[408201697,1773223838306,-168.3888056,3.136e-05,2]
[408201698,1773223838315,-2230.315306,3.136e-05,2]
[408201699,1773223838324,-557.5788265,3.136e-05,2]
[408201700,1773223838333,-864.0,3.179e-05,2]
[408201701,1773223838343,-500.0,3.2e-05,2]
[408201702,1773223838352,-500.0,3.27e-05,2]
[408201703,1773223838361,-500.0,3.27e-05,2]
[408201704,1773223838370,-500.0,3.27e-05,2]
[408201705,1773223838379,-500.0,3.27e-05,2]
[408201706,1773223838388,-500.0,3.3e-05,2]
[408201707,1773223838398,-500.0,3.324e-05,2]
[408201708,1773223838407,-823.0,3.359e-05,2]
[408201709,1773223838416,-1000.0,3.497e-05,2]
[408201710,1773223838427,-554.41827816,3.5e-05,2]
[408201711,1773223838437,-15697.01650841,3.554e-05,2]
[408201712,1773223838446,-6392.72293274,3.567e-05,2]
[408201713,1773223838456,-1500.0,3.618e-05,2]
[408201714,1773223838466,-1500.0,3.618e-05,2]
[408201715,1773223838476,-611.62954181,3.684e-05,2]
[408201716,1773223838487,-174.61919141,3.684e-05,2]
[408201717,1773223838496,-2312.83697232,3.684e-05,2]
[408201718,1773223838507,-578.20924308,3.684e-05,2]
[408201719,1773223838516,-1152.0,3.695e-05,2]
[408201720,1773223838527,-1000.0,3.7e-05,2]
[408201721,1773223838537,-500.0,3.719e-05,2]
[408201722,1773223838546,-1000.0,3.818e-05,2]
[408201723,1773223838557,-1000.0,3.818e-05,2]
[408201724,1773223838567,-1000.0,3.818e-05,2]
[408201725,1773223838576,-1000.0,3.818e-05,2]
[408201726,1773223838585,-1000.0,3.847e-05,2]
[408201727,1773223838595,-244.0,3.847e-05,2]
[408201728,1773223838604,-1000.0,3.872e-05,2]
[408201729,1773223838614,-465.77869863,3.901e-05,2]
[408201730,1773223838625,-500.0,3.915e-05,2]
[408201731,1773223838636,-1500.0,4e-05,2]
[408201732,1773223838647,-1613.0,4.065e-05,2]
[408201733,1773223838657,-347.60619832,4.11e-05,2]
[408201734,1773223838667,-2000.0,4.166e-05,2]
[408201735,1773223838677,-1104.44542318,4.166e-05,2]
[408201736,1773223838687,-1000.0,4.232e-05,2]
[408201737,1773223838696,-492.0,4.232e-05,2]
[408201738,1773223838706,-181.08010149,4.232e-05,2]
[408201739,1773223838715,-2398.4119403,4.232e-05,2]
[408201740,1773223838724,-599.60298507,4.232e-05,2]
[408201741,1773223838735,-1500.0,4.366e-05,2]
[408201742,1773223838744,-1500.0,4.366e-05,2]
[408201743,1773223838753,-1500.0,4.366e-05,2]
[408201744,1773223838763,-1500.0,4.366e-05,2]
[408201745,1773223838772,-1500.0,4.42e-05,2]
[408201746,1773223838784,-2258.0,4.471e-05,2]
[408201747,1773223838793,-1500.0,4.5e-05,2]
[408201748,1773223838803,-317.14759591,4.51e-05,2]
[408201749,1773223838812,-1000.0,4.655e-05,2]
[408201750,1773223838821,-791.0,4.655e-05,2]
[408201751,1773223838831,-22411.42245841,4.691e-05,2]
[408201752,1773223838839,-1667.77796006,4.714e-05,2]
[408201753,1773223838848,-187.78006525,4.78e-05,2]
[408201754,1773223838857,-2487.15318209,4.78e-05,2]
[408201755,1773223838867,-621.78829552,4.78e-05,2]
[408201756,1773223838876,-4000.0,4.83e-05,2]
[408201757,1773223838885,-2000.0,4.914e-05,2]
[408201758,1773223838894,-2000.0,4.914e-05,2]
[408201759,1773223838903,-995.90438206,4.914e-05,2]
[408201760,1773223838912,-2000.0,4.914e-05,2]
[408201761,1773223838921,-790.0,4.919e-05,2]
[408201762,1773223838930,-501.01014045,4.968e-05,2]
[408201763,1773223838939,-4015.25019028,5e-05,2]
[408201764,1773223838948,-190.17909311,5e-05,2]
[408201765,1773223838957,-500.0,5e-05,2]
[408201766,1773223838966,-500.0,5e-05,2]
[408201767,1773223838975,-500.0,5e-05,2]
[408201768,1773223838984,-500.0,5e-05,2]
[408201769,1773223838993,-190.39087453,5e-05,2]
[408201770,1773223839003,-634.99506343,5e-05,2]
[408201771,1773223839012,-500.0,5e-05,2]
[408201772,1773223839021,-500.0,5e-05,2]
[408201773,1773223839031,-500.0,5e-05,2]
[408201774,1773223839040,-500.0,5e-05,2]
[408201775,1773223839049,-201.06469463,5e-05,2]
[408201776,1773223839058,-500.0,5e-05,2]
[408201777,1773223839067,-500.0,5e-05,2]
[408201778,1773223839076,-500.0,5e-05,2]
[408201779,1773223839085,-500.0,5e-05,2]
[408201780,1773223839094,-500.0,5e-05,2]
[408201781,1773223839103,-500.0,5e-05,2]
[408201782,1773223839111,-500.0,5e-05,2]
[408201783,1773223839121,-500.0,5e-05,2]
[408201784,1773223839134,-500.0,5e-05,2]
[408201785,1773223839143,-500.0,5e-05,2]
[408201786,1773223839152,-500.0,5e-05,2]
[408201787,1773223839161,-500.0,5e-05,2]
[408201788,1773223839172,-444.92348074,5e-05,2]
[408201789,1773223839181,-500.0,5e-05,2]
[408201790,1773223839191,-500.0,5e-05,2]
[408201791,1773223839200,-500.0,5e-05,2]
[408201792,1773223839209,-500.0,5e-05,2]
[408201793,1773223839219,-500.0,5e-05,2]
[408201794,1773223839227,-500.0,5e-05,2]
[408201795,1773223839236,-500.0,5e-05,2]
[408201796,1773223839246,-500.0,5e-05,2]
[408201797,1773223839256,-500.0,5e-05,2]
[408201798,1773223839265,-500.0,5e-05,2]
[408201799,1773223839274,-500.0,5e-05,2]
[408201800,1773223839283,-500.0,5e-05,2]
[408201801,1773223839293,-500.0,5e-05,2]
[408201802,1773223839302,-500.0,5e-05,2]
[408201803,1773223839311,-500.0,5e-05,2]
[408201804,1773223839321,-500.0,5e-05,2]
[408201805,1773223839330,-500.0,5e-05,2]
[408201806,1773223839339,-500.0,5e-05,2]
[408201807,1773223839350,-500.0,5e-05,2]
[408201808,1773223839359,-500.0,5e-05,2]
[408201809,1773223839368,-500.0,5e-05,2]
[408201810,1773223839378,-500.0,5e-05,2]
[408201811,1773223839388,-500.0,5e-05,2]
[408201812,1773223839398,-500.0,5e-05,2]
[408201813,1773223839408,-500.0,5e-05,2]
[408201814,1773223839418,-2266.26725985,5e-05,2]
[408201815,1773223839428,-500.0,5e-05,2]
[408201816,1773223839438,-2266.26725983,5e-05,2]
[408201817,1773223839446,-2266.26725983,5e-05,2]
[408201819,1773223839456,-2266.26725983,5e-05,2]
[408201820,1773223839465,-2266.26725983,5e-05,2]
[408201821,1773223839475,-500.0,5e-05,2]
[408201822,1773223839485,-500.0,5e-05,2]
[408201823,1773223839494,-500.0,5e-05,2]
[408201824,1773223839503,-500.0,5e-05,2]
[408201825,1773223839512,-500.0,5e-05,2]
[408201826,1773223839521,-500.0,5e-05,2]
[408201827,1773223839530,-500.0,5e-05,2]
[408201828,1773223839539,-500.0,5e-05,2]
[408201829,1773223839548,-500.0,5e-05,2]
[408201830,1773223839557,-1375.14342719,5.087e-05,2]
[408201831,1773223839567,-1000.0,5.12e-05,2]
[408201832,1773223839576,-1000.0,5.12e-05,2]
[408201833,1773223839586,-8214.53434763,5.32e-05,2]
[408201834,1773223839596,-2579.17784983,5.328e-05,2]
[408201835,1773223839605,-540.37239332,5.328e-05,2]
[408201836,1773223839614,-2500.0,5.462e-05,2]
[408201837,1773223839623,-2500.0,5.462e-05,2]
[408201838,1773223839632,-2500.0,5.462e-05,2]
[408201839,1773223839642,-500.0,5.479e-05,2]
[408201840,1773223839651,-500.0,5.479e-05,2]
[408201841,1773223839660,-500.0,5.479e-05,2]
[408201842,1773223839669,-500.0,5.479e-05,2]
[408201843,1773223839679,-500.0,5.479e-05,2]
[408201844,1773223839687,-508.09496002,5.479e-05,2]
[408201845,1773223839697,-500.0,5.479e-05,2]
[408201846,1773223839706,-500.0,5.479e-05,2]
[408201847,1773223839715,-300.0,5.479e-05,2]
[408201848,1773223839724,-1900.219483,5.479e-05,2]
[408201849,1773223839734,-1000.0,5.632e-05,2]
[408201850,1773223839743,-1000.0,5.632e-05,2]
[408201851,1773223839752,-298.0,5.632e-05,2]
[408201852,1773223839761,-12413.81850498,5.641e-05,2]
[408201853,1773223839770,-639.0,5.773e-05,2]
[408201854,1773223839779,-2193.0,5.773e-05,2]
[408201855,1773223839788,-380.934,5.776e-05,2]
[408201856,1773223839798,-436.0,5.776e-05,2]
[408201857,1773223839808,-733.0,5.776e-05,2]
[408201858,1773223839817,-150.0,5.778e-05,2]
[408201859,1773223839827,-201.93286099,5.876e-05,2]
[408201860,1773223839835,-2674.60743027,5.876e-05,2]
[408201861,1773223839845,-12711.68145369,5.961e-05,2]
[408201862,1773223839854,-160.0,6e-05,2]
[408201863,1773223839863,-3000.0,6.01e-05,2]
[408201864,1773223839872,-3000.0,6.01e-05,2]
[408201865,1773223839881,-3003.17581139,6.01e-05,2]
[408201866,1773223839890,-15317.06723651,6.282e-05,2]
[408201867,1773223839899,-3066.644915,6.376e-05,2]
[408201868,1773223839908,-166.75405675,6.424e-05,2]
[408201869,1773223839917,-2773.56790519,6.424e-05,2]
[408201870,1773223839926,-3066.644915,6.455e-05,2]
[408201871,1773223839935,-365.52604274,6.51e-05,2]
[408201872,1773223839944,-3066.644915,6.535e-05,2]
[408201873,1773223839953,-502.14467213,6.558e-05,2]
[408201874,1773223839962,-1500.0,6.558e-05,2]
[408201875,1773223839971,-200.0,6.6e-05,2]
[408201876,1773223839980,-16613.10266233,6.602e-05,2]
[408201877,1773223839989,-3066.644915,6.615e-05,2]
[408201878,1773223839998,-3066.644915,6.694e-05,2]
[408201879,1773223840007,-1366.53650596,6.8e-05,2]
[408201880,1773223840016,-3622.49750277,6.849e-05,2]
[408201881,1773223840025,-2037.65484531,6.849e-05,2]
[408201882,1773223840034,-905.62437569,6.849e-05,2]
[408201883,1773223840043,-226.40609392,6.849e-05,2]
[408201884,1773223840053,-2557.05706078,6.849e-05,7]
[408201885,1773223840062,-638.62500093,6.849e-05,7]
[408201886,1773223840071,-7130.15933381,6.849e-05,2]
[408201887,1773223840081,-4951.49953737,6.849e-05,2]
[408201888,1773223840090,-3168.95970391,6.849e-05,2]
[408201889,1773223840100,-1782.53983345,6.849e-05,2]
[408201890,1773223840109,-792.23992598,6.849e-05,2]
[408201891,1773223840118,-198.05998149,6.849e-05,2]
[408201892,1773223840131,-4523.53463618,6.849e-05,7]
[408201893,1773223840139,-2544.48823285,6.849e-05,7]
[408201894,1773223840148,-1130.88365904,6.849e-05,7]
[408201895,1773223840157,-282.43819385,6.849e-05,7]
[408201896,1773223840167,-620.0,6.849e-05,2]
[408201897,1773223840176,-2876.18991768,6.972e-05,2]
[408201898,1773223840185,-175.00590885,7.056e-05,2]
[408201899,1773223840195,-20527.83880242,7.243e-05,2]
[408201900,1773223840204,-4832.03301009,7.438e-05,18]
[408201901,1773223840214,-2180.1228339,7.52e-05,2]
[408201902,1773223840222,-20812.38681968,7.564e-05,2]
[408201903,1773223840232,-805.35550168,7.713e-05,19]
[408201904,1773223840241,-23133.22458538,7.884e-05,2]
[408201905,1773223840250,-805.35550168,7.987e-05,21]
[408201906,1773223840260,-161.56,8.124e-05,2]
[408201907,1773223840270,-150.7570859,8.219e-05,2]
[408201908,1773223840279,-156.44046122,8.219e-05,2]
[408201909,1773223840288,-150.0,8.219e-05,2]
[408201910,1773223840298,-500.0,8.219e-05,2]
[408201911,1773223840307,-500.0,8.219e-05,2]
[408201912,1773223840317,-500.0,8.219e-05,2]
[408201913,1773223840327,-151.69532864,8.219e-05,2]
[408201914,1773223840336,-150.0,8.219e-05,2]
[408201915,1773223840345,-500.0,8.219e-05,2]
[408201916,1773223840355,-150.0,8.219e-05,2]
[408201917,1773223840364,-155.2406818,8.219e-05,2]
[408201918,1773223840374,-150.0,8.219e-05,2]
[408201919,1773223840383,-150.7012615,8.219e-05,2]
[408201920,1773223840393,-150.0,8.219e-05,2]
[408201921,1773223840403,-283.03436007,8.219e-05,2]
[408201922,1773223840412,-500.0,8.219e-05,2]
[408201923,1773223840421,-382.09331105,8.219e-05,2]
[408201924,1773223840431,-500.0,8.219e-05,2]
[408201925,1773223840440,-400.13448811,8.219e-05,2]
[408201926,1773223840450,-805.35550168,8.262e-05,22]
[408201927,1773223840459,-150.0,8.274e-05,2]
[408201928,1773223840469,-500.0,8.274e-05,2]
[408201929,1773223840479,-500.0,8.274e-05,2]
[408201930,1773223840488,-500.0,8.274e-05,2]
[408201931,1773223840498,-164.84764796,8.274e-05,2]
[408201932,1773223840507,-504.00030019,8.274e-05,2]
[408201933,1773223840518,-150.0,8.274e-05,2]
[408201934,1773223840528,-150.0,8.274e-05,2]
[408201935,1773223840537,-150.0,8.274e-05,2]
[408201936,1773223840547,-150.0,8.329e-05,2]
[408201937,1773223840556,-592.76575002,8.329e-05,2]
[408201938,1773223840565,-500.0,8.329e-05,2]
[408201939,1773223840575,-500.0,8.329e-05,2]
[408201940,1773223840584,-204.53434451,8.329e-05,2]
[408201941,1773223840593,-150.0,8.329e-05,2]
[408201942,1773223840602,-164.04314085,8.329e-05,2]
[408201943,1773223840611,-150.0,8.383e-05,2]
[408201944,1773223840620,-500.0,8.383e-05,2]
[408201945,1773223840629,-539.8684464,8.383e-05,2]
[408201946,1773223840639,-150.0,8.383e-05,2]
[408201947,1773223840648,-153.08738955,8.438e-05,2]
[408201948,1773223840658,-500.0,8.438e-05,2]
[408201949,1773223840667,-153.23713875,8.438e-05,2]
[408201950,1773223840676,-500.0,8.493e-05,2]
[408201951,1773223840685,-500.0,8.493e-05,2]
[408201952,1773223840695,-160.0,8.493e-05,3]
[408201953,1773223840704,-388.11817972,8.5e-05,2]
[408201954,1773223840713,-413.90448957,8.51e-05,2]
[408201955,1773223840723,-25804.29704641,8.525e-05,2]
[408201956,1773223840732,-805.35550168,8.537e-05,23]
[408201957,1773223840742,-500.0,8.548e-05,2]
[408201958,1773223840751,-500.0,8.603e-05,2]
[408201959,1773223840761,-500.0,8.657e-05,2]
[408201960,1773223840770,-500.0,8.712e-05,2]
[408201961,1773223840780,-500.0,8.767e-05,2]
[408201962,1773223840789,-363.12798907,8.767e-05,2]
[408201963,1773223840799,-639.0,8.773e-05,2]
[408201964,1773223840808,-2193.0,8.773e-05,2]
[408201965,1773223840817,-436.0,8.776e-05,2]
[408201966,1773223840826,-733.0,8.776e-05,2]
[408201967,1773223840835,-160.0,8.8e-05,2]
[408201968,1773223840845,-160.0,8.8e-05,2]
[408201969,1773223840854,-805.35550168,8.811e-05,25]
[408201970,1773223840863,-160.0,8.819e-05,4]
[408201971,1773223840873,-160.27123854,8.819e-05,5]
[408201972,1773223840883,-172.0103145,8.822e-05,2]
[408201973,1773223840893,-5004.73643641,9e-05,2]
[408201974,1773223840902,-5000.0,9e-05,2]
[408201975,1773223840911,-5000.0,9e-05,2]
[408201976,1773223840921,-5000.0,9e-05,2]
[408201977,1773223840930,-5000.0,9e-05,2]
[408201978,1773223840940,-5000.0,9e-05,2]
[408201979,1773223840949,-805.35550168,9.086e-05,26]
[408201980,1773223840958,-28859.3579034,9.166e-05,2]
[408201981,1773223840968,-500.0,9.2e-05,2]
[408201982,1773223840977,-500.0,9.2e-05,2]
[408201983,1773223840986,-191.97474434,9.2e-05,2]
[408201984,1773223840995,-161.67104768,9.339e-05,2]
[408201985,1773223841005,-805.35550168,9.361e-05,28]
[408201986,1773223841015,-10006.5622507,9.5e-05,2]
[408201987,1773223841024,-805.35550168,9.635e-05,29]
[408201988,1773223841035,-199.90004997,9.718e-05,5]
[408201989,1773223841044,-160.0,9.8e-05,2]
[408201990,1773223841055,-160.0,9.8e-05,2]
[408201991,1773223841064,-32583.56032437,9.807e-05,2]
[408201992,1773223841074,-800.0,9.874e-05,2]
[408201993,1773223841083,-800.0,9.877e-05,2]
[408201994,1773223841092,-13718.86399418,9.9e-05,2]
[408201995,1773223841102,-805.35550168,9.91e-05,30]
[408201996,1773223841111,-800.0,9.982e-05,2]
[408201997,1773223841122,-512.80150766,0.0001,2]
[408201998,1773223841136,-500.0,0.0001,2]
[408201999,1773223841146,-500.0,0.0001,2]
[408202000,1773223841155,-998.62,0.0001,3]
[408202001,1773223841164,-1777.62759956,0.0001,2]
[408202002,1773223841175,-647.15834257,0.0001,2]
[408202003,1773223841185,-483.02313525,0.0001,2]
[408202004,1773223841380,-414.85259713,0.0001,2]
[408202005,1773223841391,-1089.10912789,0.0001,2]